Workbook

Sheet Topics
A1: Many New Excel 2007 / 2010 Tricks For Making Your Job Easier. Learn how you can manage and manipulate data with great efficiency and fun!
A3: 0 | B3: 12 Tips To Start With
A4: 1 | B4: 2007 Table Feature: Dynamic Ranges
A5: 2 | B5: 2007 Conditional Formatting
A6: 3 | B6: 2007 Filter Feature
A7: 4 | B7: 2007 COUNTIFS, SUMIFS Functions
A8: 5 | B8: 2007 PivotTable interface
A9: 6 | B9: 2010 PivotTable Slicers
A10: 7 | B10: 2010 Sparklines: Cell Charts
A11: 8 | B11: 2010 Paste Special icons
A12: 9 | B12: 2010 Print Options and Print Preview
A13: 10 | B13: 2010 RANK function

Sheet 10 Tips
A1: 1 | B1: 0.045 | D1: If you use % icon, be sure to increase decimals too
A2: 2 | B2: =2/3 -> 0.6666666667 | D2: if you want the number 2/3 in a cell, use formula =2/3,
D3: otherwise you will see a date
A4: 3 | B4: 1.55 | D4: If you get data from a download or from someone else, be
B5: 1.5 | D5: sure to check the "Number Formatting", because 2 = 2 <> 3
A6: 4 | B6: =SUM(B4:B5) -> 3.05 | D6: Keyboard shortcut for SUM function ==>> Alt + =
A8: 5 | B8: End Date | C8: 2011-10-19 | D8: If you want to figure out the number of days between two | K8: Dates have a Date Number Format, but underneath is a the
B9: Begin Date | C9: 2011-10-11 | D9: dates, use the formula: End Date - Begin Date. | J9: ==>> More | K9: number of days (whole numbers) since Dec 13, 1899, where
B10: Days between | C10: =C8-C9 -> 8 | D10: Note: This is good for "# Days for a Project", or "Days Invoice | K10: 1/1/1900 is 1, 1/2/1900 is 2 and 10/11/2011 is 40827.
D11: Past Due", or "# Days Assignment Late"
A13: 6 | B13: End Time | C13: 14:00:00 | D13: If you want the number of hours between two times, use the | K13: Times Have a Time Number Format, but underneath is a
B14: Begin Time | C14: 08:00:00 | D14: formula: (End Time - Begin Time)*24 | J14: ==>> More | K14: number between 1 and 0 that represents the proportion of one
B15: Time Worked | C15: =(C13-C14)*24 -> 6 | K15: 24 hour day. Ex: 6/24 = 0.25
A17: Notice that many of the common mistakes made in Excel come from "Number Formatting"
A19: 7 | B19: 0.045 | D19: When in Doubt apply "General" (Default) Number Formatting
B20: 1.55 | D20: to wipe away all Number Formatting
B21: 1.5 | D21: Keyboard = Ctrl + Shift + ~
B22: 40827
B23: =TODAY() -> 40828
B24: 0.3333333333
B25: 0.5833333333
A27: 8 | B27: 2 | C27: 2 | E27: If you want to enter data in more than one column,
B28: 2 | C28: 5 | E28: highlight range first and just use the Enter key
B29: 5 | C29: 5
B30: 6 | C30: 6
A32: 9 | B32: Tax Rate | C32: 0.095 | E32: Don't hard code numbers into formulas if they have
B33: Sales | C33: 100 | E33: the potential to change
B34: Tax Rate | C34: =C33*C32 -> 9.5 | D34: Not = C33*0.095
A36: 10 | B36: Student | C36: Total | D36: % Grade | F36: When copying a formula, if you want to
B37: Max Score | C37: 500 | D37: =C37/$C$37 -> 1 | F37: lock the Cell Reference, use the F4 key to
B38: Marcie Deere | C38: 478 | D38: =C38/$C$37 -> 0.956 | F38: put in the $ signs
B39: Lilia Hanover | C39: 406 | D39: =C39/$C$37 -> 0.812
B40: Hugh Winders | C40: 302 | D40: 0.604
B41: Jamie Stegman | C41: 260 | D41: 0.52
B42: Fernando Manfredi | C42: 131 | D42: 0.262
B43: Max Hoos | C43: 463 | D43: 0.926
B44: Margery Rana | C44: 309 | D44: 0.618
B45: Lorrie Maheu | C45: 459 | D45: 0.918
B46: Kelly Magda | C46: 130 | D46: 0.26
B47: Emilia Karpinski | C47: 183 | D47: =C47/$C$37 -> 0.366
A49: 11 | B49: % | C49: Decimal | E49: When sorting a table, click in one cell in the column you want to sort, then
B50: 0.91 | C50: 3.6 | E50: sort (A to Z or Z to A) and whole table will be sorted (Table should have filed
B51: 0.92 | C51: 3.7 | E51: names (column headers) at top and records in rows).
B52: 0.93 | C52: 3.8
B53: 0.94 | C53: 3.9
B54: 0.95 | C54: 4
A56: 12 | B56: Student | C56: Total | D56: % Grade | E56: Decimal Grade | G56: % | H56: Decimal | J56: VLOOKUP function does a vertical lookup
B57: Max Score | C57: 500 | D57: =C57/$C$37 -> 1 | G57: 0 | H57: 0 | J57: (table with values is orientated vertically.
B58: Lilia Hanover | C58: 406 | D58: =C58/$C$57 -> 0.812 | E58: =VLOOKUP(D58,$G$57:$H$91,2) -> 2.6 | G58: 0.62 | H58: 0.7 | J58: It takes a value to lookup, lookups it up
B59: Hugh Winders | C59: 302 | D59: 0.604 | E59: =VLOOKUP(D59,$G$57:$H$91,2) -> 0 | G59: 0.63 | H59: 0.8 | J59: in the first column in the lookup table,
B60: Marcie Deere | C60: 478 | D60: =C60/$C$57 -> 0.956 | E60: 4 | G60: 0.64 | H60: 0.9 | J60: when it bumps into a value bigger than
B61: Jamie Stegman | C61: 260 | D61: 0.52 | E61: 0 | G61: 0.65 | H61: 1 | J61: it, it jumps back one row, then jumps
B62: Fernando Manfredi | C62: 131 | D62: 0.262 | E62: 0 | G62: 0.66 | H62: 1.1 | J62: over to the 2nd column to get the
B63: Max Hoos | C63: 463 | D63: 0.926 | E63: 3.7 | G63: 0.67 | H63: 1.2 | J63: decimal grade and then delivers that
B64: Margery Rana | C64: 309 | D64: 0.618 | E64: 0 | G64: 0.68 | H64: 1.3 | J64: decimal back to the cell that houses the
B65: Lorrie Maheu | C65: 459 | D65: 0.918 | E65: 3.6 | G65: 0.69 | H65: 1.4 | J65: VLOOKUP function.
B66: Kelly Magda | C66: 130 | D66: 0.26 | E66: 0 | G66: 0.7 | H66: 1.5 | J66: Use Approximate Match (the default)
B67: Emilia Karpinski | C67: 183 | D67: 0.366 | E67: =VLOOKUP(D67,$G$57:$H$91,2) -> 0 | G67: 0.71 | H67: 1.6 | J67: when you have gaps between the values
G68: 0.72 | H68: 1.7 | J68: in the first column of the lookup table.
G69: 0.73 | H69: 1.8 | J69: First column of lookup table must be
G70: 0.74 | H70: 1.9 | J70: sorted in ascending order.
G71: 0.75 | H71: 2
G72: 0.76 | H72: 2.1
G73: 0.77 | H73: 2.2
G74: 0.78 | H74: 2.3
G75: 0.79 | H75: 2.4
G76: 0.8 | H76: 2.5
G77: 0.81 | H77: 2.6
G78: 0.82 | H78: 2.7
G79: 0.83 | H79: 2.8
G80: 0.84 | H80: 2.9
G81: 0.85 | H81: 3
G82: 0.86 | H82: 3.1
G83: 0.87 | H83: 3.2
G84: 0.88 | H84: 3.3
G85: 0.89 | H85: 3.4
G86: 0.9 | H86: 3.5
G87: 0.91 | H87: 3.6
G88: 0.92 | H88: 3.7
G89: 0.93 | H89: 3.8
G90: 0.94 | H90: 3.9
G91: 0.95 | H91: 4

Sheet Tables
A1: Tables in 2007/2010 have dynamic ranges.
A2: Data must have field names (column headers) at top and data in rows
A3: Keyboard to convert data to a "Table" => Ctrl + T
A5: Day | B5: Calls Per Day | D5: Total | F5: Chart
A6: 2011-10-11 | B6: 25 | D6: =SUM(B6:B11) -> 191
A7: 2011-10-12 | B7: 38 | D7: =SUM(Table1[Calls Per Day]) -> 191
A8: 2011-10-13 | B8: 29
A9: 2011-10-14 | B9: 43
A10: 2011-10-15 | B10: 55
A11: 2011-10-16 | B11: 1

Sheet Conditional Formatting
A1: Highlight range, go to Styles Group in Home Ribbon Tab
A4: Day | B4: Calls Per Day | D4: Day | E4: Calls Per Day | G4: Day | H4: Calls Per Day
A5: 2011-10-11 | B5: 104 | D5: 2011-10-11 | E5: 104 | G5: 2011-10-11 | H5: 104
A6: 2011-10-12 | B6: 66 | D6: 2011-10-12 | E6: 66 | G6: 2011-10-12 | H6: 66
A7: 2011-10-13 | B7: 66 | D7: 2011-10-13 | E7: 66 | G7: 2011-10-13 | H7: 66
A8: 2011-10-14 | B8: 1 | D8: 2011-10-14 | E8: 84 | G8: 2011-10-14 | H8: 84
A9: 2011-10-17 | B9: 71 | D9: 2011-10-17 | E9: 71 | G9: 2011-10-17 | H9: 71
A10: 2011-10-18 | B10: 106 | D10: 2011-10-18 | E10: 1 | G10: 2011-10-18 | H10: 1
A11: 2011-10-19 | B11: 81 | D11: 2011-10-19 | E11: 81 | G11: 2011-10-19 | H11: 81
A12: 2011-10-20 | B12: 19 | D12: 2011-10-20 | E12: 19 | G12: 2011-10-20 | H12: =H14 -> 19
A13: 2011-10-21 | B13: 72 | D13: 2011-10-21 | E13: 72 | G13: 2011-10-21 | H13: 72
A14: 2011-10-24 | B14: 92 | D14: 2011-10-24 | E14: 92 | G14: 2011-10-20 | H14: 19
A15: 2011-10-25 | B15: 51 | D15: 2011-10-25 | E15: 51 | G15: 2011-10-21 | H15: 72
A16: 2011-10-26 | B16: 70 | D16: 2011-10-26 | E16: 70 | G16: 2011-10-22 | H16: 70
A17: 2011-10-27 | B17: 21 | D17: 2011-10-27 | E17: 21 | G17: 2011-10-23 | H17: 21

Sheet Filter (1)
A1: To Turn Filter on, click in one cell in table (field names in first row and
A2: records in rows), then in Filter Sort group in Data Ribbon tab, click Filter
A3: button.
A4: Do not have data to right of data set because Filter hides rows.
D6: Filter Hides
A7: Names | B7: Sales
A8: Sioux | B8: 17
A9: Tom | B9: 17
A10: Chin | B10: 20
A11: Chin | B11: 16
A12: Chin | B12: 11
A13: Sioux | B13: 11
A14: Tom | B14: 20
A16: Names | B16: Sales | D16: Sort moves and groups together, but does not hide
A17: Tom | B17: 17
A18: Tom | B18: 20
A19: Sioux | B19: 17
A20: Sioux | B20: 11
A21: Chin | B21: 20
A22: Chin | B22: 16
A23: Chin | B23: 11
A25: Sioux | B25: 17
A26: Sioux | B26: 11
A28: Names | B28: Sales
A29: Sioux | B29: 17
A30: Sioux | B30: 11

Sheet Filter (2)
A1: To Turn Filter on, click in one cell in table (field names in first row and
A2: records in rows), then in Filter Sort group in Data Ribbon tab, click Filter
A3: button.
A4: Do not have data to right of data set because Filter hides rows.
A6: Day | B6: Calls Per Day
A7: 2011-10-11 | B7: 104
A8: 2011-10-12 | B8: 66
A9: 2011-10-13 | B9: 66
A10: 2011-10-14 | B10: 84
A11: 2011-10-17 | B11: 71
A12: 2011-10-18 | B12: 106
A13: 2011-10-19 | B13: 81
A14: 2011-10-20 | B14: 19
A15: 2011-10-21 | B15: 72
A16: 2011-10-24 | B16: 92
A17: 2011-10-25 | B17: 51
A18: 2011-10-26 | B18: 70
A19: 2011-10-27 | B19: 21
A27: Day | B27: Calls Per Day
A28: 2011-10-11 | B28: 104
A29: 2011-10-14 | B29: 84
A30: 2011-10-18 | B30: 106
A31: 2011-10-24 | B31: 92

Sheet SUMIFS more
A1: Employee | B1: Calls Per Day | D1: Employee | E1: Sum 1 criteria
A2: Sioux | B2: 21 | D2: Sioux | E2: =SUMIFS($B$2:$B$16,$A$2:$A$16,D2) -> 106
A3: Jo | B3: 106 | D3: Jo | E3: =SUMIFS($B$2:$B$16,$A$2:$A$16,D3) -> 261
A4: Chin | B4: 84 | D4: Chin | E4: 189
A5: Chin | B5: 72 | D5: Seliadawn | E5: 258
A6: Seliadawn | B6: 71 | D6: Joe | E6: 217
A7: Jo | B7: 51
A8: Seliadawn | B8: 92 | D8: Employee | E8: Sum 2 criteria | F8: Hurdle
A9: Jo | B9: 104 | D9: Sioux | E9: =SUMIFS($B$2:$B$16,$A$2:$A$16,D9,$B$2:$B$16,$F$9) -> 0 | F9: >80
A10: Joe | B10: 70 | D10: Jo | E10: =SUMIFS($B$2:$B$16,$A$2:$A$16,D10,$B$2:$B$16,$F$9) -> 210
A11: Sioux | B11: 66 | D11: Chin | E11: 84
A12: Chin | B12: 33 | D12: Seliadawn | E12: 187
A13: Joe | B13: 66 | D13: Joe | E13: 81
A14: Sioux | B14: 19
A15: Joe | B15: 81 | D15: Employee | E15: Count 2 criteria | F15: Hurdle
A16: Seliadawn | B16: 95 | D16: Sioux | E16: =COUNTIFS($A$2:$A$16,D16,$B$2:$B$16,$F$16) -> 0 | F16: >80
D17: Jo | E17: =COUNTIFS($A$2:$A$16,D17,$B$2:$B$16,$F$16) -> 2
D18: Chin | E18: 1
D19: Seliadawn | E19: 2
D20: Joe | E20: 1

Sheet PTsol
A3: Highschool | B3: Average of Grade
A4: Auburn | B4: 2.7
A5: Kent | B5: 2.8775
A6: Seattle | B6: 2.718918919
A7: Grand Total | B7: 2.789655172

Sheet PT
A1: Names | B1: Gender | C1: Highschool | D1: Major | E1: Grade | U1: HS | V1: Major | X1: =VLOOKUP($A2,$T$2:$V$31,COLUMNS($C2:C2)+1,0) -> 
A2: Debroah Meara | B2: W | C2: Kent | D2: Acc | E2: 3.4 | H2: Column Labels | S2: W | T2: Shanice Dettore | U2: Auburn | V2: Acc | X2: =CHOOSE(RANDBETWEEN(1,4),RANDBETWEEN(10,40)/10,RANDBETWEEN(15,35)/10,RANDBETWEEN(20,40)/10,RANDBETWEEN(20,30)/10) -> 3.5
A3: Lauren Czernik | B3: W | C3: Highline | D3: Nurse | E3: 1.8 | S3: W | T3: Lynwood Mongiovi | U3: Auburn | V3: Nurse
A4: Devona Eberting | B4: W | C4: Seattle | D4: ComSc | E4: 2.7 | S4: M | T4: Kali Keoghan | U4: Auburn | V4: ComSc
A5: Rolf Monrow | B5: M | C5: Auburn | D5: Busn | E5: 1.8 | H5: Acc | I5: Busn | J5: Chem | K5: ComSc | L5: English | M5: Math | N5: Nurse | O5: Physics | S5: W | T5: Trinity Mackstutis | U5: Auburn | V5: Busn
A6: Eldridge Mccalpin | B6: M | C6: Kent | D6: Physics | E6: 1.3 | G6: Seattle | H6: =IFERROR(AVERAGEIFS($E$2:$E$718,$C$2:$C$718,$G6,$D$2:$D$718,H$5),"") -> 2.718918919 | I6: =IFERROR(AVERAGEIFS($E$2:$E$718,$C$2:$C$718,$G6,$D$2:$D$718,I$5),"") -> 2.41 | J6: =IFERROR(AVERAGEIFS($E$2:$E$718,$C$2:$C$718,$G6,$D$2:$D$718,J$5),"") -> 2.675862069 | K6: =IFERROR(AVERAGEIFS($E$2:$E$718,$C$2:$C$718,$G6,$D$2:$D$718,K$5),"") -> 2.56969697 | L6: =IFERROR(AVERAGEIFS($E$2:$E$718,$C$2:$C$718,$G6,$D$2:$D$718,L$5),"") ->  | M6: =IFERROR(AVERAGEIFS($E$2:$E$718,$C$2:$C$718,$G6,$D$2:$D$718,M$5),"") -> 2.75 | N6: =IFERROR(AVERAGEIFS($E$2:$E$718,$C$2:$C$718,$G6,$D$2:$D$718,N$5),"") ->  | O6: =IFERROR(AVERAGEIFS($E$2:$E$718,$C$2:$C$718,$G6,$D$2:$D$718,O$5),"") -> 2.63255814 | S6: M | T6: Fausto Hanafin | U6: Auburn | V6: Physics
A7: Jewel Lingner | B7: W | C7: Highline | D7: Chem | E7: 2.6 | G7: Kent | H7: =IFERROR(AVERAGEIFS($E$2:$E$718,$C$2:$C$718,$G7,$D$2:$D$718,H$5),"") -> 2.941538462 | I7: =IFERROR(AVERAGEIFS($E$2:$E$718,$C$2:$C$718,$G7,$D$2:$D$718,I$5),"") -> 2.886486486 | J7: =IFERROR(AVERAGEIFS($E$2:$E$718,$C$2:$C$718,$G7,$D$2:$D$718,J$5),"") ->  | K7: =IFERROR(AVERAGEIFS($E$2:$E$718,$C$2:$C$718,$G7,$D$2:$D$718,K$5),"") -> 3.07 | L7: =IFERROR(AVERAGEIFS($E$2:$E$718,$C$2:$C$718,$G7,$D$2:$D$718,L$5),"") -> 2.540298507 | M7: =IFERROR(AVERAGEIFS($E$2:$E$718,$C$2:$C$718,$G7,$D$2:$D$718,M$5),"") -> 2.783333333 | N7: =IFERROR(AVERAGEIFS($E$2:$E$718,$C$2:$C$718,$G7,$D$2:$D$718,N$5),"") ->  | O7: =IFERROR(AVERAGEIFS($E$2:$E$718,$C$2:$C$718,$G7,$D$2:$D$718,O$5),"") -> 2.865116279 | S7: W | T7: Sherrell Bucchin | U7: Auburn | V7: Chem
A8: Edmundo Froiland | B8: M | C8: Seattle | D8: Chem | E8: 2.8 | G8: Highline | H8: =IFERROR(AVERAGEIFS($E$2:$E$718,$C$2:$C$718,$G8,$D$2:$D$718,H$5),"") -> 2.97 | I8: =IFERROR(AVERAGEIFS($E$2:$E$718,$C$2:$C$718,$G8,$D$2:$D$718,I$5),"") -> 2.48 | J8: =IFERROR(AVERAGEIFS($E$2:$E$718,$C$2:$C$718,$G8,$D$2:$D$718,J$5),"") -> 3.039393939 | K8: =IFERROR(AVERAGEIFS($E$2:$E$718,$C$2:$C$718,$G8,$D$2:$D$718,K$5),"") -> 2.65 | L8: =IFERROR(AVERAGEIFS($E$2:$E$718,$C$2:$C$718,$G8,$D$2:$D$718,L$5),"") -> 2.47 | M8: =IFERROR(AVERAGEIFS($E$2:$E$718,$C$2:$C$718,$G8,$D$2:$D$718,M$5),"") ->  | N8: =IFERROR(AVERAGEIFS($E$2:$E$718,$C$2:$C$718,$G8,$D$2:$D$718,N$5),"") -> 2.733333333 | O8: =IFERROR(AVERAGEIFS($E$2:$E$718,$C$2:$C$718,$G8,$D$2:$D$718,O$5),"") -> 2.68 | S8: W | T8: Heide Alexakis | U8: Highline | V8: Chem
A9: Angelika Bringantino | B9: W | C9: Auburn | D9: ComSc | E9: 3.5 | G9: Auburn | H9: =IFERROR(AVERAGEIFS($E$2:$E$718,$C$2:$C$718,$G9,$D$2:$D$718,H$5),"") -> 3.14 | I9: =IFERROR(AVERAGEIFS($E$2:$E$718,$C$2:$C$718,$G9,$D$2:$D$718,I$5),"") -> 2.529230769 | J9: =IFERROR(AVERAGEIFS($E$2:$E$718,$C$2:$C$718,$G9,$D$2:$D$718,J$5),"") -> 2.8 | K9: =IFERROR(AVERAGEIFS($E$2:$E$718,$C$2:$C$718,$G9,$D$2:$D$718,K$5),"") -> 2.430434783 | L9: =IFERROR(AVERAGEIFS($E$2:$E$718,$C$2:$C$718,$G9,$D$2:$D$718,L$5),"") ->  | M9: =IFERROR(AVERAGEIFS($E$2:$E$718,$C$2:$C$718,$G9,$D$2:$D$718,M$5),"") -> 2.7 | N9: =IFERROR(AVERAGEIFS($E$2:$E$718,$C$2:$C$718,$G9,$D$2:$D$718,N$5),"") -> 2.61 | O9: =IFERROR(AVERAGEIFS($E$2:$E$718,$C$2:$C$718,$G9,$D$2:$D$718,O$5),"") -> 2.98 | S9: W | T9: Birgit Angelozzi | U9: Highline | V9: ComSc
A10: Gracia Dreps | B10: W | C10: Kent | D10: Acc | E10: 3.7 | S10: W | T10: Delinda Pasto | U10: Highline | V10: Acc
A11: Glinda Meinershagen | B11: W | C11: Highline | D11: Nurse | E11: 3.8 | S11: M | T11: Gaylord Apthorpe | U11: Highline | V11: Nurse
A12: Leana Dutschmann | B12: W | C12: Seattle | D12: Chem | E12: 3.9 | G12: Row Labels | I12: Values Area | S12: M | T12: Hilma Laroe | U12: Highline | V12: Chem
A13: Arnetta Cova | B13: M | C13: Auburn | D13: Busn | E13: 0.1 | I13: Where average calculation is made | S13: M | T13: Kiley Bradon | U13: Highline | V13: Busn
A14: Vivan Osvaldo | B14: W | C14: Auburn | D14: Busn | E14: 2.7 | I14: PivotTables are great for making calculations with two or more criteria | S14: M | T14: Magaly Feyler | U14: Kent | V14: Busn
A15: Patience Oeler | B15: M | C15: Auburn | D15: Busn | E15: 3.3 | I15: Average of all grades that were in ComSc Major AND Kent High School District | S15: M | T15: Chin Olgvin | U15: Kent | V15: Busn
A16: Delta Lasagna | B16: M | C16: Auburn | D16: Math | E16: 3.1 | S16: W | T16: Serina Measeck | U16: Kent | V16: Math
A17: Francesco Caryk | B17: M | C17: Kent | D17: Acc | E17: 2.6 | G17: Notes when creating PivotTable: | S17: M | T17: Long Boid | U17: Kent | V17: Acc
A18: Malcom Esannason | B18: M | C18: Seattle | D18: Acc | E18: 4 | G18: Table must have field names (column headers) and records in rows | S18: W | T18: Britt Declark | U18: Kent | V18: Acc
A19: Del Orttenburger | B19: W | C19: Kent | D19: English | E19: 2 | G19: Click in one cell and use PivotTable button in Insert Ribbon tab | S19: W | T19: Laila Fosburgh | U19: Kent | V19: English
A20: Alethia Macnevin | B20: W | C20: Highline | D20: English | E20: 2.4 | G20: PivotTable Tools Design Ribbon, Change Report Layout to "Tabular" | S20: M | T20: Jeromy Afshar | U20: Kent | V20: English
A21: Hosea Breines | B21: W | C21: Kent | D21: English | E21: 3.6 | G21: Change Number Formatting: Right Click in PivotTable | S21: M | T21: Waylon Patik | U21: Kent | V21: English
A22: Rebbecca Paponetti | B22: W | C22: Seattle | D22: Math | E22: 0.8 | G22: Change calculation to Average: Right Click in PivotTable | S22: M | T22: Douglass Nesland | U22: Kent | V22: Math
A23: Suellen Faix | B23: W | C23: Seattle | D23: Busn | E23: 2.7 | G23: PivotTable Slicer: Filters the whole PivotTable: PivotTable Tools Options Ribbon Tab, "Insert Slicer" button | S23: M | T23: Palmer Bartch | U23: Kent | V23: Busn
A24: Wally Hiens | B24: M | C24: Seattle | D24: Acc | E24: 2.7 | S24: M | T24: Dayle Kuiz | U24: Seattle | V24: Acc
A25: Wes Gittere | B25: M | C25: Seattle | D25: ComSc | E25: 3.7 | S25: W | T25: Loni Gootz | U25: Seattle | V25: ComSc
A26: Winford Garnet | B26: M | C26: Kent | D26: ComSc | E26: 2.8 | S26: W | T26: Elayne Mcward | U26: Seattle | V26: ComSc
A27: Antione Cabeza | B27: W | C27: Highline | D27: ComSc | E27: 1.6 | S27: M | T27: Cristopher Alias | U27: Seattle | V27: ComSc
A28: Britany Leavigne | B28: W | C28: Kent | D28: Physics | E28: 2.5 | S28: M | T28: Andreas Mccarr | U28: Seattle | V28: Physics
A29: Macie Droski | B29: W | C29: Highline | D29: Physics | E29: 3.5 | S29: M | T29: Lonny Auslam | U29: Seattle | V29: Physics
A30: Lien Mulzer | B30: W | C30: Kent | D30: Physics | E30: 3.3 | S30: M | T30: Johnson Degado | U30: Seattle | V30: Physics
A31: Frederica Angiolelli | B31: W | C31: Kent | D31: Physics | E31: 3.2 | S31: W | T31: Leigh Affronti | U31: Seattle | V31: Physics
A32: Debroah Meara | B32: W | C32: Kent | D32: Acc | E32: 2.4 | S32: W | T32: Debroah Meara
A33: Lauren Czernik | B33: W | C33: Highline | D33: Nurse | E33: 0.8 | S33: W | T33: Lauren Czernik
A34: Devona Eberting | B34: W | C34: Seattle | D34: ComSc | E34: 3.3 | S34: W | T34: Devona Eberting
A35: Rolf Monrow | B35: M | C35: Auburn | D35: Busn | E35: 3.6 | S35: M | T35: Rolf Monrow
A36: Eldridge Mccalpin | B36: M | C36: Kent | D36: Physics | E36: 2.9 | S36: M | T36: Eldridge Mccalpin
A37: Jewel Lingner | B37: W | C37: Highline | D37: Chem | E37: 4 | S37: W | T37: Jewel Lingner
A38: Edmundo Froiland | B38: M | C38: Seattle | D38: Chem | E38: 0.5 | S38: M | T38: Edmundo Froiland
A39: Angelika Bringantino | B39: W | C39: Auburn | D39: ComSc | E39: 0.9 | S39: W | T39: Angelika Bringantino
A40: Gracia Dreps | B40: W | C40: Kent | D40: Acc | E40: 3.2 | S40: W | T40: Gracia Dreps
A41: Glinda Meinershagen | B41: W | C41: Highline | D41: Nurse | E41: 2.2 | S41: W | T41: Glinda Meinershagen
A42: Leana Dutschmann | B42: W | C42: Seattle | D42: Chem | E42: 2.3 | S42: W | T42: Leana Dutschmann
A43: Arnetta Cova | B43: M | C43: Auburn | D43: Busn | E43: 2.9 | S43: M | T43: Arnetta Cova
A44: Vivan Osvaldo | B44: W | C44: Auburn | D44: Busn | E44: 2.2 | S44: W | T44: Vivan Osvaldo
A45: Patience Oeler | B45: M | C45: Auburn | D45: Busn | E45: 2 | S45: M | T45: Patience Oeler
A46: Delta Lasagna | B46: M | C46: Auburn | D46: Math | E46: 3.3 | S46: M | T46: Delta Lasagna
A47: Francesco Caryk | B47: M | C47: Kent | D47: Acc | E47: 3.1 | S47: M | T47: Francesco Caryk
A48: Malcom Esannason | B48: M | C48: Seattle | D48: Acc | E48: 1.9 | S48: M | T48: Malcom Esannason
A49: Del Orttenburger | B49: W | C49: Kent | D49: English | E49: 3.3 | S49: W | T49: Del Orttenburger
A50: Alethia Macnevin | B50: W | C50: Highline | D50: English | E50: 2.2 | S50: W | T50: Alethia Macnevin
A51: Hosea Breines | B51: W | C51: Kent | D51: English | E51: 3.8 | S51: W | T51: Hosea Breines
A52: Rebbecca Paponetti | B52: W | C52: Seattle | D52: Math | E52: 1.6 | S52: W | T52: Rebbecca Paponetti
A53: Suellen Faix | B53: W | C53: Seattle | D53: Busn | E53: 3 | S53: W | T53: Suellen Faix
A54: Wally Hiens | B54: M | C54: Seattle | D54: Acc | E54: 4 | S54: M | T54: Wally Hiens
A55: Wes Gittere | B55: M | C55: Seattle | D55: ComSc | E55: 2.2 | S55: M | T55: Wes Gittere
A56: Winford Garnet | B56: M | C56: Kent | D56: ComSc | E56: 3.1 | S56: M | T56: Winford Garnet
A57: Antione Cabeza | B57: W | C57: Highline | D57: ComSc | E57: 3.7 | S57: W | T57: Antione Cabeza
A58: Britany Leavigne | B58: W | C58: Kent | D58: Physics | E58: 0.1 | S58: W | T58: Britany Leavigne
A59: Macie Droski | B59: W | C59: Highline | D59: Physics | E59: 2.2 | S59: W | T59: Macie Droski
A60: Lien Mulzer | B60: W | C60: Kent | D60: Physics | E60: 3.3 | S60: W | T60: Lien Mulzer
A61: Frederica Angiolelli | B61: W | C61: Kent | D61: Physics | E61: 2.3 | S61: W | T61: Frederica Angiolelli
A62: Debroah Meara | B62: W | C62: Kent | D62: Acc | E62: 3
A63: Lauren Czernik | B63: W | C63: Highline | D63: Nurse | E63: 0.5
A64: Devona Eberting | B64: W | C64: Seattle | D64: ComSc | E64: 1.1
A65: Rolf Monrow | B65: M | C65: Auburn | D65: Busn | E65: 2.7
A66: Eldridge Mccalpin | B66: M | C66: Kent | D66: Physics | E66: 2.5
A67: Jewel Lingner | B67: W | C67: Highline | D67: Chem | E67: 2.2
A68: Edmundo Froiland | B68: M | C68: Seattle | D68: Chem | E68: 3.3
A69: Angelika Bringantino | B69: W | C69: Auburn | D69: ComSc | E69: 2.5
A70: Gracia Dreps | B70: W | C70: Kent | D70: Acc | E70: 2.8
A71: Glinda Meinershagen | B71: W | C71: Highline | D71: Nurse | E71: 3.9
A72: Leana Dutschmann | B72: W | C72: Seattle | D72: Chem | E72: 2.9
A73: Arnetta Cova | B73: M | C73: Auburn | D73: Busn | E73: 3.4
A74: Vivan Osvaldo | B74: W | C74: Auburn | D74: Busn | E74: 3
A75: Patience Oeler | B75: M | C75: Auburn | D75: Busn | E75: 3.8
A76: Delta Lasagna | B76: M | C76: Auburn | D76: Math | E76: 2.5
A77: Francesco Caryk | B77: M | C77: Kent | D77: Acc | E77: 3.9
A78: Malcom Esannason | B78: M | C78: Seattle | D78: Acc | E78: 3.2
A79: Del Orttenburger | B79: W | C79: Kent | D79: English | E79: 3.3
A80: Alethia Macnevin | B80: W | C80: Highline | D80: English | E80: 3.6
A81: Hosea Breines | B81: W | C81: Kent | D81: English | E81: 3.3
A82: Rebbecca Paponetti | B82: W | C82: Seattle | D82: Math | E82: 3.3
A83: Suellen Faix | B83: W | C83: Seattle | D83: Busn | E83: 0.2
A84: Wally Hiens | B84: M | C84: Seattle | D84: Acc | E84: 3.4
A85: Wes Gittere | B85: M | C85: Seattle | D85: ComSc | E85: 3.9
A86: Winford Garnet | B86: M | C86: Kent | D86: ComSc | E86: 2.9
A87: Antione Cabeza | B87: W | C87: Highline | D87: ComSc | E87: 0.5
A88: Britany Leavigne | B88: W | C88: Kent | D88: Physics | E88: 2.6
A89: Macie Droski | B89: W | C89: Highline | D89: Physics | E89: 1.5
A90: Lien Mulzer | B90: W | C90: Kent | D90: Physics | E90: 3.7
A91: Frederica Angiolelli | B91: W | C91: Kent | D91: Physics | E91: 3.2
A92: Debroah Meara | B92: W | C92: Kent | D92: Acc | E92: 3.7
A93: Lauren Czernik | B93: W | C93: Highline | D93: Nurse | E93: 2.9
A94: Devona Eberting | B94: W | C94: Seattle | D94: ComSc | E94: 0.8
A95: Rolf Monrow | B95: M | C95: Auburn | D95: Busn | E95: 3.9
A96: Eldridge Mccalpin | B96: M | C96: Kent | D96: Physics | E96: 2.2
A97: Jewel Lingner | B97: W | C97: Highline | D97: Chem | E97: 3.7
A98: Edmundo Froiland | B98: M | C98: Seattle | D98: Chem | E98: 2.6
A99: Angelika Bringantino | B99: W | C99: Auburn | D99: ComSc | E99: 1.7
A100: Gracia Dreps | B100: W | C100: Kent | D100: Acc | E100: 2.7
A101: Glinda Meinershagen | B101: W | C101: Highline | D101: Nurse | E101: 2.9
A102: Leana Dutschmann | B102: W | C102: Seattle | D102: Chem | E102: 1.6
A103: Arnetta Cova | B103: M | C103: Auburn | D103: Busn | E103: 3.3
A104: Vivan Osvaldo | B104: W | C104: Auburn | D104: Busn | E104: 2.3
A105: Patience Oeler | B105: M | C105: Auburn | D105: Busn | E105: 4
A106: Delta Lasagna | B106: M | C106: Auburn | D106: Math | E106: 3.3
A107: Francesco Caryk | B107: M | C107: Kent | D107: Acc | E107: 3.4
A108: Malcom Esannason | B108: M | C108: Seattle | D108: Acc | E108: 3.9
A109: Del Orttenburger | B109: W | C109: Kent | D109: English | E109: 0.2
A110: Alethia Macnevin | B110: W | C110: Highline | D110: English | E110: 3.7
A111: Hosea Breines | B111: W | C111: Kent | D111: English | E111: 2.8
A112: Rebbecca Paponetti | B112: W | C112: Seattle | D112: Math | E112: 2.1
A113: Suellen Faix | B113: W | C113: Seattle | D113: Busn | E113: 0.5
A114: Wally Hiens | B114: M | C114: Seattle | D114: Acc | E114: 2.7
A115: Wes Gittere | B115: M | C115: Seattle | D115: ComSc | E115: 1.6
A116: Winford Garnet | B116: M | C116: Kent | D116: ComSc | E116: 3.7
A117: Antione Cabeza | B117: W | C117: Highline | D117: ComSc | E117: 4
A118: Britany Leavigne | B118: W | C118: Kent | D118: Physics | E118: 3.8
A119: Macie Droski | B119: W | C119: Highline | D119: Physics | E119: 3.4
A120: Lien Mulzer | B120: W | C120: Kent | D120: Physics | E120: 2.6
A121: Frederica Angiolelli | B121: W | C121: Kent | D121: Physics | E121: 3
A122: Debroah Meara | B122: W | C122: Kent | D122: Acc | E122: 3
A123: Lauren Czernik | B123: W | C123: Highline | D123: Nurse | E123: 3.4
A124: Devona Eberting | B124: W | C124: Seattle | D124: ComSc | E124: 2
A125: Rolf Monrow | B125: M | C125: Auburn | D125: Busn | E125: 3.8
A126: Eldridge Mccalpin | B126: M | C126: Kent | D126: Physics | E126: 3.8
A127: Jewel Lingner | B127: W | C127: Highline | D127: Chem | E127: 3.8
A128: Edmundo Froiland | B128: M | C128: Seattle | D128: Chem | E128: 2
A129: Angelika Bringantino | B129: W | C129: Auburn | D129: ComSc | E129: 2.5
A130: Gracia Dreps | B130: W | C130: Kent | D130: Acc | E130: 2.8
A131: Glinda Meinershagen | B131: W | C131: Highline | D131: Nurse | E131: 3.5
A132: Leana Dutschmann | B132: W | C132: Seattle | D132: Chem | E132: 3.1
A133: Arnetta Cova | B133: M | C133: Auburn | D133: Busn | E133: 2.9
A134: Vivan Osvaldo | B134: W | C134: Auburn | D134: Busn | E134: 2.1
A135: Patience Oeler | B135: M | C135: Auburn | D135: Busn | E135: 2.9
A136: Delta Lasagna | B136: M | C136: Auburn | D136: Math | E136: 2.4
A137: Francesco Caryk | B137: M | C137: Kent | D137: Acc | E137: 3.7
A138: Malcom Esannason | B138: M | C138: Seattle | D138: Acc | E138: 0.4
A139: Del Orttenburger | B139: W | C139: Kent | D139: English | E139: 3.4
A140: Alethia Macnevin | B140: W | C140: Highline | D140: English | E140: 2.1
A141: Hosea Breines | B141: W | C141: Kent | D141: English | E141: 2.2
A142: Rebbecca Paponetti | B142: W | C142: Seattle | D142: Math | E142: 3.7
A143: Suellen Faix | B143: W | C143: Seattle | D143: Busn | E143: 2.3
A144: Wally Hiens | B144: M | C144: Seattle | D144: Acc | E144: 1.2
A145: Wes Gittere | B145: M | C145: Seattle | D145: ComSc | E145: 1.8
A146: Winford Garnet | B146: M | C146: Kent | D146: ComSc | E146: 3.1
A147: Antione Cabeza | B147: W | C147: Highline | D147: ComSc | E147: 0
A148: Britany Leavigne | B148: W | C148: Kent | D148: Physics | E148: 2.1
A149: Macie Droski | B149: W | C149: Highline | D149: Physics | E149: 2.3
A150: Lien Mulzer | B150: W | C150: Kent | D150: Physics | E150: 2.9
A151: Frederica Angiolelli | B151: W | C151: Kent | D151: Physics | E151: 3.9
A152: Debroah Meara | B152: W | C152: Kent | D152: Acc | E152: 3.5
A153: Lauren Czernik | B153: W | C153: Highline | D153: Nurse | E153: 3.8
A154: Devona Eberting | B154: W | C154: Seattle | D154: ComSc | E154: 1.5
A155: Rolf Monrow | B155: M | C155: Auburn | D155: Busn | E155: 2.7
A156: Eldridge Mccalpin | B156: M | C156: Kent | D156: Physics | E156: 2.7
A157: Jewel Lingner | B157: W | C157: Highline | D157: Chem | E157: 2.1
A158: Edmundo Froiland | B158: M | C158: Seattle | D158: Chem | E158: 2.3
A159: Angelika Bringantino | B159: W | C159: Auburn | D159: ComSc | E159: 0.9
A160: Gracia Dreps | B160: W | C160: Kent | D160: Acc | E160: 2.2
A161: Glinda Meinershagen | B161: W | C161: Highline | D161: Nurse | E161: 4
A162: Leana Dutschmann | B162: W | C162: Seattle | D162: Chem | E162: 3.2
A163: Arnetta Cova | B163: M | C163: Auburn | D163: Busn | E163: 0.8
A164: Vivan Osvaldo | B164: W | C164: Auburn | D164: Busn | E164: 2.5
A165: Patience Oeler | B165: M | C165: Auburn | D165: Busn | E165: 2
A166: Delta Lasagna | B166: M | C166: Auburn | D166: Math | E166: 2.6
A167: Francesco Caryk | B167: M | C167: Kent | D167: Acc | E167: 2
A168: Malcom Esannason | B168: M | C168: Seattle | D168: Acc | E168: 3.8
A169: Del Orttenburger | B169: W | C169: Kent | D169: English | E169: 0.7
A170: Alethia Macnevin | B170: W | C170: Highline | D170: English | E170: 2.3
A171: Hosea Breines | B171: W | C171: Kent | D171: English | E171: 3.1
A172: Rebbecca Paponetti | B172: W | C172: Seattle | D172: Math | E172: 3.3
A173: Suellen Faix | B173: W | C173: Seattle | D173: Busn | E173: 3.4
A174: Wally Hiens | B174: M | C174: Seattle | D174: Acc | E174: 1.8
A175: Wes Gittere | B175: M | C175: Seattle | D175: ComSc | E175: 3
A176: Winford Garnet | B176: M | C176: Kent | D176: ComSc | E176: 3.1
A177: Antione Cabeza | B177: W | C177: Highline | D177: ComSc | E177: 3.3
A178: Britany Leavigne | B178: W | C178: Kent | D178: Physics | E178: 2.6
A179: Macie Droski | B179: W | C179: Highline | D179: Physics | E179: 3.7
A180: Lien Mulzer | B180: W | C180: Kent | D180: Physics | E180: 1
A181: Frederica Angiolelli | B181: W | C181: Kent | D181: Physics | E181: 3.3
A182: Debroah Meara | B182: W | C182: Kent | D182: Acc | E182: 2.3
A183: Lauren Czernik | B183: W | C183: Highline | D183: Nurse | E183: 3.6
A184: Devona Eberting | B184: W | C184: Seattle | D184: ComSc | E184: 0.3
A185: Rolf Monrow | B185: M | C185: Auburn | D185: Busn | E185: 2.5
A186: Eldridge Mccalpin | B186: M | C186: Kent | D186: Physics | E186: 3.4
A187: Jewel Lingner | B187: W | C187: Highline | D187: Chem | E187: 3.8
A188: Edmundo Froiland | B188: M | C188: Seattle | D188: Chem | E188: 1.6
A189: Angelika Bringantino | B189: W | C189: Auburn | D189: ComSc | E189: 1.4
A190: Gracia Dreps | B190: W | C190: Kent | D190: Acc | E190: 3.9
A191: Glinda Meinershagen | B191: W | C191: Highline | D191: Nurse | E191: 3.2
A192: Leana Dutschmann | B192: W | C192: Seattle | D192: Chem | E192: 2.8
A193: Arnetta Cova | B193: M | C193: Auburn | D193: Busn | E193: 3.8
A194: Vivan Osvaldo | B194: W | C194: Auburn | D194: Busn | E194: 0.4
A195: Patience Oeler | B195: M | C195: Auburn | D195: Busn | E195: 2.8
A196: Delta Lasagna | B196: M | C196: Auburn | D196: Math | E196: 2.5
A197: Francesco Caryk | B197: M | C197: Kent | D197: Acc | E197: 3.8
A198: Malcom Esannason | B198: M | C198: Seattle | D198: Acc | E198: 1.3
A199: Del Orttenburger | B199: W | C199: Kent | D199: English | E199: 0.7
A200: Alethia Macnevin | B200: W | C200: Highline | D200: English | E200: 0.3
... 518 more rows

Sheet Sparklines
A1: Trend: | F1: 0 | G1: 5 | H1: 10 | I1: 1 | J1: 5 | K1: 10 | L1: 8 | M1: 12 | N1: 0 | O1: 15
A2: Ave Quiz1 | B2: 8.454545455 | F2: 20 | G2: 20 | H2: 15 | I2: 20 | J2: 20 | K2: 20 | L2: 20 | M2: 20 | N2: 20 | O2: 20
A3: Ave Quiz2 | B3: 12.20454545 | F3: Quiz1 | G3: Quiz2 | H3: Quiz3 | I3: Quiz4 | J3: Quiz5 | K3: Quiz6 | L3: Quiz7 | M3: Quiz8 | N3: Quiz9 | O3: Quiz10
A4: Ave Quiz3 | B4: 12.68181818 | F4: =RANDBETWEEN(F$1,F$2) -> 12 | G4: 9 | H4: 15 | I4: 13 | J4: 7 | K4: 17 | L4: 13 | M4: 16 | N4: 5 | O4: 17
A5: Ave Quiz4 | B5: 11.36363636 | F5: 20 | G5: 18 | H5: 12 | I5: 8 | J5: 15 | K5: 18 | L5: 13 | M5: 20 | N5: 8 | O5: 15
A6: Ave Quiz5 | B6: 11.70454545 | F6: 20 | G6: 6 | H6: 13 | I6: 15 | J6: 20 | K6: 12 | L6: 15 | M6: 18 | N6: 2 | O6: 17
A7: Ave Quiz6 | B7: 14.65909091 | F7: 14 | G7: 6 | H7: 12 | I7: 1 | J7: 20 | K7: 16 | L7: 18 | M7: 16 | N7: 6 | O7: 17
A8: Ave Quiz7 | B8: 13.79545455 | F8: 18 | G8: 16 | H8: 14 | I8: 8 | J8: 10 | K8: 16 | L8: 15 | M8: 15 | N8: 15 | O8: 16
A9: Ave Quiz8 | B9: 16.43181818 | F9: 15 | G9: 5 | H9: 10 | I9: 5 | J9: 18 | K9: 16 | L9: 9 | M9: 12 | N9: 9 | O9: 20
A10: Ave Quiz9 | B10: 8.886363636 | F10: 8 | G10: 13 | H10: 10 | I10: 13 | J10: 18 | K10: 12 | L10: 15 | M10: 20 | N10: 0 | O10: 16
A11: Ave Quiz10 | B11: 17.20454545 | F11: 14 | G11: 20 | H11: 14 | I11: 11 | J11: 12 | K11: 18 | L11: 8 | M11: 16 | N11: 12 | O11: 19
F12: 14 | G12: 10 | H12: 10 | I12: 12 | J12: 6 | K12: 15 | L12: 18 | M12: 14 | N12: 15 | O12: 18
A13: Trend: | F13: 4 | G13: 20 | H13: 11 | I13: 12 | J13: 15 | K13: 12 | L13: 14 | M13: 18 | N13: 2 | O13: 15
A14: Ave Quiz1 | B14: =B2 -> 8.454545455 | F14: =RANDBETWEEN(F$1,F$2) -> 11 | G14: 8 | H14: 14 | I14: 3 | J14: 7 | K14: 16 | L14: 15 | M14: 17 | N14: 1 | O14: 16
A15: Ave Quiz2 | B15: 12.20454545 | F15: 19 | G15: 19 | H15: 11 | I15: 12 | J15: 17 | K15: 15 | L15: 18 | M15: 14 | N15: 13 | O15: 17
A16: Ave Quiz3 | B16: 12.68181818 | F16: 0 | G16: 10 | H16: 12 | I16: 12 | J16: 13 | K16: 12 | L16: 17 | M16: 19 | N16: 7 | O16: 17
A17: Ave Quiz4 | B17: 11.36363636 | F17: 5 | G17: 13 | H17: 13 | I17: 8 | J17: 13 | K17: 15 | L17: 8 | M17: 12 | N17: 13 | O17: 17
A18: Ave Quiz5 | B18: 11.70454545 | F18: 10 | G18: 6 | H18: 15 | I18: 9 | J18: 8 | K18: 17 | L18: 11 | M18: 12 | N18: 19 | O18: 20
A19: Ave Quiz6 | B19: 14.65909091 | F19: 20 | G19: 19 | H19: 13 | I19: 16 | J19: 19 | K19: 17 | L19: 12 | M19: 18 | N19: 2 | O19: 20
A20: Ave Quiz7 | B20: 13.79545455 | F20: 5 | G20: 20 | H20: 13 | I20: 6 | J20: 19 | K20: 10 | L20: 15 | M20: 12 | N20: 11 | O20: 15
A21: Ave Quiz8 | B21: 16.43181818 | F21: 14 | G21: 14 | H21: 11 | I21: 16 | J21: 10 | K21: 18 | L21: 12 | M21: 17 | N21: 6 | O21: 18
A22: Ave Quiz9 | B22: 8.886363636 | F22: 6 | G22: 5 | H22: 13 | I22: 16 | J22: 18 | K22: 17 | L22: 9 | M22: 20 | N22: 20 | O22: 19
A23: Ave Quiz10 | B23: 17.20454545 | F23: 11 | G23: 16 | H23: 14 | I23: 19 | J23: 5 | K23: 18 | L23: 10 | M23: 13 | N23: 18 | O23: 15
F24: =RANDBETWEEN(F$1,F$2) -> 15 | G24: 13 | H24: 11 | I24: 16 | J24: 15 | K24: 14 | L24: 11 | M24: 13 | N24: 4 | O24: 16
A25: Distribution of Grades: | F25: 0 | G25: 12 | H25: 13 | I25: 1 | J25: 20 | K25: 20 | L25: 15 | M25: 16 | N25: 10 | O25: 19
A26: Categories | B26: Frequency | F26: 6 | G26: 15 | H26: 12 | I26: 19 | J26: 10 | K26: 13 | L26: 9 | M26: 12 | N26: 9 | O26: 16
A27: 0 - 2.5 | B27: =FREQUENCY($F$4:$O$47,{2.5;5;7.5;10;12.5;15;17.5;20}) -> 16 | F27: 20 | G27: 7 | H27: 12 | I27: 15 | J27: 16 | K27: 11 | L27: 17 | M27: 14 | N27: 10 | O27: 17
A28: 2.5 - 5 | B28: 15 | F28: 0 | G28: 8 | H28: 12 | I28: 14 | J28: 20 | K28: 15 | L28: 18 | M28: 19 | N28: 17 | O28: 15
A29: 5 - 7.5 | B29: 23 | F29: 18 | G29: 20 | H29: 14 | I29: 19 | J29: 15 | K29: 14 | L29: 20 | M29: 16 | N29: 9 | O29: 17
A30: 7.5 - 10 | B30: 63 | F30: 19 | G30: 17 | H30: 12 | I30: 19 | J30: 9 | K30: 19 | L30: 12 | M30: 19 | N30: 9 | O30: 16
A31: 10 - 12.5 | B31: 65 | F31: 3 | G31: 20 | H31: 15 | I31: 11 | J31: 9 | K31: 12 | L31: 20 | M31: 18 | N31: 2 | O31: 19
A32: 12.5 - 15 | B32: 94 | F32: 3 | G32: 19 | H32: 13 | I32: 20 | J32: 12 | K32: 20 | L32: 12 | M32: 15 | N32: 7 | O32: 18
A33: 15 - 17.5 | B33: 62 | F33: 15 | G33: 9 | H33: 10 | I33: 17 | J33: 16 | K33: 18 | L33: 15 | M33: 14 | N33: 10 | O33: 17
A34: 17.5 - 20 | B34: 102 | F34: =RANDBETWEEN(F$1,F$2) -> 8 | G34: 7 | H34: 14 | I34: 14 | J34: 19 | K34: 10 | L34: 8 | M34: 16 | N34: 3 | O34: 18
F35: 13 | G35: 7 | H35: 14 | I35: 16 | J35: 8 | K35: 15 | L35: 13 | M35: 20 | N35: 7 | O35: 20
F36: 20 | G36: 10 | H36: 10 | I36: 2 | J36: 19 | K36: 14 | L36: 10 | M36: 18 | N36: 0 | O36: 18
F37: 7 | G37: 9 | H37: 11 | I37: 12 | J37: 11 | K37: 16 | L37: 11 | M37: 20 | N37: 0 | O37: 17
F38: 0 | G38: 6 | H38: 15 | I38: 19 | J38: 20 | K38: 15 | L38: 10 | M38: 16 | N38: 12 | O38: 18
F39: 11 | G39: 13 | H39: 12 | I39: 11 | J39: 7 | K39: 11 | L39: 19 | M39: 16 | N39: 13 | O39: 17
F40: 9 | G40: 11 | H40: 12 | I40: 12 | J40: 20 | K40: 20 | L40: 9 | M40: 16 | N40: 13 | O40: 16
F41: 14 | G41: 19 | H41: 10 | I41: 15 | J41: 10 | K41: 20 | L41: 18 | M41: 16 | N41: 10 | O41: 19
F42: 18 | G42: 20 | H42: 10 | I42: 6 | J42: 10 | K42: 14 | L42: 18 | M42: 12 | N42: 5 | O42: 17
F43: 14 | G43: 12 | H43: 12 | I43: 16 | J43: 12 | K43: 19 | L43: 13 | M43: 16 | N43: 7 | O43: 19
F44: 11 | G44: 11 | H44: 11 | I44: 18 | J44: 13 | K44: 19 | L44: 9 | M44: 17 | N44: 13 | O44: 19
F45: 19 | G45: 10 | H45: 11 | I45: 7 | J45: 8 | K45: 10 | L45: 9 | M45: 19 | N45: 0 | O45: 18
F46: 18 | G46: 9 | H46: 13 | I46: 11 | J46: 9 | K46: 10 | L46: 16 | M46: 15 | N46: 13 | O46: 20
F47: 5 | G47: 8 | H47: 12 | I47: 16 | J47: 16 | K47: 12 | L47: 18 | M47: 18 | N47: 8 | O47: 16
G50: Categories | H50: Frequency
G51: 0 - 2.5 | H51: =FREQUENCY($F$4:$O$47,{2.5;5;7.5;10;12.5;15;17.5;20}) -> 16
G52: 2.5 - 5 | H52: 15
G53: 5 - 7.5 | H53: 23
G54: 7.5 - 10 | H54: 63
G55: 10 - 12.5 | H55: 65
G56: 12.5 - 15 | H56: 94
G57: 15 - 17.5 | H57: 62
G58: 17.5 - 20 | H58: 102
G60: Quiz1 | H60: =AVERAGE(INDEX($F$4:$O$47,0,MATCH(A2,$F$3:$O$3,0))) -> 
G61: Quiz2
G62: Quiz3
G63: Quiz4
G64: Quiz5
G65: Quiz6
G66: Quiz7
G67: Quiz8
G68: Quiz9
G69: Quiz10

Sheet Paste Special
B1: Acc | C1: Busn | D1: Chem | E1: ComSc | F1: English | G1: Math | H1: Nurse | I1: Physics | K1: Grades
A2: Auburn | B2: 2 | C2: 2.53 | D2: 2.8 | E2: 2.43 | G2: 2.7 | H2: 2.61 | I2: 2.98 | K2: 20 | M2: 18.63636364
A3: Highline | B3: 2.97 | C3: 2.48 | D3: 3.04 | E3: 2.65 | F3: 2.47 | H3: 2.73 | I3: 2.68 | K3: 26
A4: Kent | B4: 2.94 | C4: 2.89 | E4: 3.07 | F4: 2.54 | G4: 2.78 | I4: 2.87 | K4: 15 | M4: 18.63636364
A5: Seattle | B5: 2.72 | C5: 2.41 | D5: 2.68 | E5: 2.57 | G5: 2.75 | I5: 2.63 | K5: 26
K6: 11 | M6: 18.63636364
B7: Auburn | C7: Highline | D7: Kent | E7: Seattle | K7: 18
A8: Acc | B8: 3.14 | C8: 2.97 | D8: 2.94 | E8: 2.72 | K8: 18
A9: Busn | B9: 2.53 | C9: 2.48 | D9: 2.89 | E9: 2.41 | K9: 20
A10: Chem | B10: 2.8 | C10: 3.04 | E10: 2.68 | K10: 18
A11: ComSc | B11: 2.43 | C11: 2.65 | D11: 3.07 | E11: 2.57 | K11: 11
A12: English | C12: 2.47 | D12: 2.54 | K12: 22
A13: Math | B13: 2.7 | D13: 2.78 | E13: 2.75 | K13: =AVERAGE(K2:K12) -> 18.63636364
A14: Nurse | B14: 2.61 | C14: 2.73
A15: Physics | B15: 2.98 | C15: 2.68 | D15: 2.87 | E15: 2.63
B24: Auburn | C24: Highline | D24: Kent | E24: Seattle
A25: Acc | B25: 2 | C25: 2.97 | D25: 2.94 | E25: 2.72
A26: Busn | B26: 2.53 | C26: 2.48 | D26: 2.89 | E26: 2.41
A27: Chem | B27: 2.8 | C27: 3.04 | E27: 2.68
A28: ComSc | B28: 2.43 | C28: 2.65 | D28: 3.07 | E28: 2.57
A29: English | C29: 2.47 | D29: 2.54
A30: Math | B30: 2.7 | D30: 2.78 | E30: 2.75
A31: Nurse | B31: 2.61 | C31: 2.73
A32: Physics | B32: 2.98 | C32: 2.68 | D32: 2.87 | E32: 2.63

Sheet Print
B1: Acc | C1: Busn | D1: Chem | E1: ComSc | F1: English | G1: Math | H1: Nurse | I1: Physics | J1: Biology | K1: Art | L1: History
A2: Auburn | B2: 3.14 | C2: 2.53 | D2: 2.8 | E2: 2.43 | G2: 2.7 | H2: 2.61 | I2: 2.98 | J2: 2.88 | K2: 3.61 | L2: 3.43
A3: Highline | B3: 2.97 | C3: 2.48 | D3: 3.04 | E3: 2.65 | F3: 2.47 | H3: 2.73 | I3: 2.68 | J3: 3.26 | K3: 2.8 | L3: 2.6
A4: Kent | B4: 2.94 | C4: 2.89 | E4: 3.07 | F4: 2.54 | G4: 2.78 | I4: 2.87 | J4: 3.83 | K4: 1.46 | L4: 2.27
A5: Seattle | B5: 2.72 | C5: 2.41 | D5: 2.68 | E5: 2.57 | G5: 2.75 | I5: 2.63 | J5: 3.64 | K5: 3.5 | L5: 3.61

Sheet Rank
A1: Quiz Scores | B1: Student | C1: RANK | D1: RANK.AVE
A2: 23 | B2: student 1 | C2: =RANK(A2,$A$2:$A$15,0) -> 11 | D2: =_xlfn.RANK.AVG(A2,$A$2:$A$15,0) -> 11 | E2: =_xlfn.RANK.EQ(A2,$A$2:$A$15,0) -> 11
A3: 78 | B3: student 2 | C3: =RANK(A3,$A$2:$A$15,0) -> 3 | D3: =_xlfn.RANK.AVG(A3,$A$2:$A$15,0) -> 3.5 | E3: =_xlfn.RANK.EQ(A3,$A$2:$A$15,0) -> 3
A4: 43 | B4: student 3 | C4: 9 | D4: 9 | E4: 9
A5: 57 | B5: student 4 | C5: 6 | D5: 6.5 | E5: 6
A6: 98 | B6: student 5 | C6: 1 | D6: 1 | E6: 1
A7: 86 | B7: student 6 | C7: 2 | D7: 2 | E7: 2
A8: 13 | B8: student 7 | C8: 13 | D8: 13 | E8: 13
A9: 10 | B9: student 8 | C9: 14 | D9: 14 | E9: 14
A10: 15 | B10: student 9 | C10: 12 | D10: 12 | E10: 12
A11: 46 | B11: student 10 | C11: 8 | D11: 8 | E11: 8
A12: 78 | B12: student 11 | C12: 3 | D12: 3.5 | E12: 3
A13: 59 | B13: student 12 | C13: 5 | D13: 5 | E13: 5
A14: 24 | B14: student 13 | C14: 10 | D14: 10 | E14: 10
A15: 57 | B15: student 14 | C15: 6 | D15: 6.5 | E15: 6
